bitfinex/quotes_SOLUSD_20250903
["timestamp","ask_amount","ask_price","bid_price","bid_amount"]
[1756864516380,10.12564325,211.12,211.01,0.47391118]
[1756864516679,0.66,211.19,211.08,10.12564325]
[1756864516871,0.66,211.18,211.1,10.12564325]
[1756864517072,10.12564325,211.15,211.08,42.02]
[1756864517284,0.66,211.14,211.03,13.59559401]
[1756864517457,0.66,211.13,210.99,10.12564325]
[1756864517792,10.12564325,211.11,211.04,10.12564325]
[1756864518081,10.12564325,211.11,211.0,0.47393364]
[1756864518082,10.12564325,211.05,211.0,0.47393364]
[1756864518270,0.28432314,210.97,210.72,10.10547943]
[1756864518472,10.12564325,211.01,210.72,10.10547943]
[1756864518473,0.66,211.01,210.95,10.12564325]
[1756864518663,20.0,211.16,210.9,24.48]
[1756864518664,10.12564325,211.0,210.9,24.48]
[1756864518982,10.12564325,210.94,210.85,0.4742708]
[1756864519277,0.04085561,210.93,210.89,47.62173001]
[1756864519477,0.04085561,210.93,210.91,13.59559401]
[1756864519679,0.04085561,210.93,210.92,0.4741134]
[1756864519867,0.04085561,210.93,210.92,40.06970741]
[1756864520181,0.04085561,210.93,210.92,40.21186898]
[1756864520486,10.12564325,211.11,211.01,13.59559401]
[1756864520679,0.66,211.13,211.0,26.0]
[1756864520680,10.12564325,211.09,211.03,13.59559401]
[1756864520859,0.66,211.13,211.02,42.9]
[1756864521062,0.66,211.12,210.95,42.92]
[1756864521375,10.12564325,211.0,210.96,13.59559401]
[1756864521573,0.66,211.07,210.95,42.92]
[1756864521879,16.57981998,211.1,210.95,42.92]
[1756864521880,10.12564325,211.1,211.03,10.12564325]
[1756864522079,9.62564325,211.11,211.04,10.12564325]
[1756864522289,10.78564325,211.12,211.05,10.12564325]
[1756864522483,10.12564325,211.11,211.04,10.12564325]
[1756864523082,4.73507268,211.19,211.07,10.12564325]
[1756864523281,11.83536228,211.24,211.06,13.59559401]
[1756864523282,10.12564325,211.15,211.06,13.59559401]
[1756864523492,0.66,211.16,211.04,13.59559401]
[1756864523493,10.12564325,211.12,211.04,13.59559401]
[1756864523690,10.12564325,211.12,211.03,68.94]
[1756864523691,10.12564325,211.11,211.03,26.0]
[1756864523993,10.12564325,211.1,211.05,42.96]
[1756864524182,10.12564325,211.08,211.02,42.96]
[1756864524687,0.66,211.18,211.08,13.59559401]
[1756864524886,10.12564325,211.15,211.08,66.66123726]
[1756864525083,0.66,211.18,211.12,26.0]
[1756864525259,10.12564325,211.18,211.12,26.0]
[1756864525457,10.12564325,211.19,211.12,36.12564325]
[1756864525663,10.12564325,211.2,211.13,23.72123726]
[1756864526471,10.12564325,211.2,211.14,43.1]
[1756864526670,0.66,211.22,211.14,43.1]
[1756864526865,10.12564325,211.21,211.14,53.22564325]
[1756864527178,10.78564325,211.22,211.15,23.72123726]
[1756864527486,5.3936556,211.26,211.16,26.0]
[1756864527685,0.66,211.26,211.16,79.18564325]
[1756864527891,10.12564325,211.23,211.16,79.18564325]
[1756864528268,0.06,211.19,211.16,69.06]
[1756864528564,0.06,211.19,211.1,0.14216157]
[1756864528565,10.84564325,211.19,211.1,0.47370914]
[1756864528780,10.12564325,211.15,211.06,24.76564325]
[1756864528987,10.12564325,211.16,211.09,13.59559401]
[1756864529192,10.12564325,211.16,211.06,24.76564325]
[1756864529377,10.12564325,211.14,211.07,13.59559401]
[1756864529579,4.73562997,211.17,211.08,43.08]
[1756864529789,4.73562997,211.17,211.07,13.59559401]
[1756864529790,10.12564325,211.12,211.03,0.47386627]
[1756864529967,0.06,211.19,211.1,10.12564325]
[1756864530167,0.06,211.19,211.16,13.59559401]
[1756864530362,0.06,211.19,211.17,43.08]
[1756864530589,0.06,211.19,211.14,26.0]
[1756864530893,0.06,211.19,211.17,43.1]
[1756864531187,0.06,211.19,211.18,43.1]
[1756864531893,6.92008263,211.19,211.03,20.0]
[1756864532106,6.92008263,211.19,211.14,26.0]
[1756864532419,0.06,211.19,211.15,43.08]
[1756864532586,0.06,211.19,211.18,13.59559401]
[1756864533492,6.92008263,211.19,211.12,0.47366426]
[1756864533709,6.92008263,211.19,211.13,56.65559401]
[1756864534006,0.06,211.19,211.13,56.65559401]
[1756864534306,0.06,211.19,211.15,13.59559401]
[1756864534504,0.06,211.19,211.14,6.86008263]
[1756864535081,0.06,211.19,211.15,20.45567664]
[1756864535913,0.72,211.19,211.13,43.06]
[1756864536108,0.06,211.19,211.13,49.92008263]
[1756864536522,6.92008263,211.19,211.13,43.06]
[1756864536701,6.86008263,211.14,211.02,13.62559401]
[1756864536887,7.52008263,211.14,211.07,6.86008263]
[1756864537209,6.86008263,211.17,211.06,26.0]
[1756864537510,0.66,211.18,211.08,13.59559401]
[1756864537694,0.66,211.18,211.12,6.86008263]
[1756864537893,0.06,211.19,211.13,6.86008263]
[1756864538297,6.86008263,211.14,211.05,6.86008263]
[1756864538497,6.86008263,211.12,211.06,42.92]
[1756864538799,7.52008263,211.13,211.06,49.78008263]
[1756864539004,0.66,211.13,211.07,6.86008263]
[1756864539211,4.7950927,211.19,211.07,6.86008263]
[1756864539212,6.86008263,211.16,211.09,6.86008263]
[1756864539394,12.2562078,211.15,211.07,20.45567664]
[1756864539592,6.86008263,211.14,211.06,26.0]
[1756864539802,6.86008263,211.14,211.07,49.74008263]
[1756864540290,5.39612517,211.15,211.07,49.74008263]
[1756864540496,5.39612517,211.15,211.09,6.86008263]
[1756864540794,5.39612517,211.15,211.05,13.59559401]
[1756864541005,0.66,211.14,211.06,42.84]
[1756864541202,0.66,211.14,211.07,6.86008263]
[1756864541510,4.73664266,211.12,211.06,6.86008263]
[1756864541702,0.66,211.11,211.06,6.86008263]
[1756864541889,0.66,211.1,211.02,0.03]
[1756864542093,6.86008263,211.09,211.02,49.69008263]
[1756864542315,0.66,211.08,211.02,49.69008263]
[1756864542519,0.66,211.07,211.02,0.03]
[1756864543014,0.66,211.06,211.02,6.89008263]
[1756864543230,16.57824932,211.12,211.03,6.86008263]
[1756864543418,0.66,211.09,211.05,6.86008263]
[1756864543614,0.66,211.09,211.02,0.03]
[1756864543824,0.66,211.09,211.07,6.86008263]
[1756864544006,0.66,211.08,211.06,6.86008263]
[1756864544201,0.66,211.13,211.07,6.86008263]
[1756864544521,0.66,211.13,211.1,6.86008263]
[1756864545117,0.66,211.12,211.1,6.86008263]
[1756864545299,4.7352969,211.18,211.11,6.86008263]
[1756864545500,0.66,211.17,211.1,6.86008263]
[1756864545817,23.43362178,211.18,211.06,42.76]
[1756864545818,0.66,211.16,211.13,6.86008263]
[1756864546120,0.66,211.16,211.14,6.86008263]
[1756864547102,0.66,211.16,211.05,13.59559401]
[1756864547103,6.86008263,211.16,211.08,49.52008263]
[1756864547307,0.66,211.15,211.08,49.52008263]
[1756864547626,0.06,211.19,211.14,6.86008263]
[1756864547627,4.79510379,211.19,211.14,6.86008263]
[1756864547818,0.66,211.18,211.09,39.59559401]
[1756864548327,0.06,211.19,211.17,6.86008263]
[1756864548509,0.06,211.19,211.18,49.54008263]
[1756864549108,0.06,211.19,211.18,42.72]
[1756864549432,0.06,211.19,211.18,49.58008263]
[1756864549625,0.06,211.19,211.18,63.17567664]
[1756864550623,0.06,211.19,211.18,63.13567664]
[1756864551122,0.06,211.19,211.06,11.84448499]
[1756864551328,0.06,211.19,211.18,6.86008263]
[1756864551518,0.06,211.19,211.18,49.50008263]
[1756864551715,0.06,211.19,211.18,42.64]
[1756864552032,0.06,211.19,211.18,49.50008263]
[1756864552231,0.06,211.19,211.18,46.02061901]
[1756864553126,0.06,211.19,211.18,45.96061901]
[1756864554025,0.06,211.19,211.18,3.38061901]
[1756864554206,0.06,211.19,211.18,45.94061901]
[1756864555233,0.72,211.19,211.18,3.42283194]
[1756864555609,7.58008263,211.19,211.18,3.42283194]
[1756864555814,7.58008263,211.19,211.18,2.70283194]
[1756864556332,0.06,211.19,211.18,2.70283194]
[1756864557551,0.06,211.19,211.18,45.18283194]
[1756864557915,0.06,211.19,211.18,2.70283194]
[1756864559016,0.72,211.19,211.18,2.70283194]
[1756864559217,0.06,211.19,211.18,2.70283194]
[1756864559643,0.06,211.19,211.18,9.56291457]
[1756864560136,4.79507268,211.19,211.18,2.70283194]
[1756864560320,5.45507268,211.19,211.18,2.70283194]
[1756864560520,0.72,211.19,211.18,2.70283194]
[1756864560727,5.45507268,211.19,211.18,2.70283194]
[1756864561410,5.45507268,211.19,211.11,32.86008263]
[1756864561618,0.66,211.18,211.11,6.86008263]
[1756864561817,0.66,211.17,211.1,49.30008263]
[1756864562338,6.86008263,211.15,211.03,0.03]
[1756864562522,6.86008263,211.14,211.06,6.86008263]
[1756864562849,6.86008263,211.09,211.03,0.03]
[1756864563050,6.86008263,211.06,211.03,0.03]
[1756864563238,6.86008263,211.06,210.93,6.86008263]
[1756864563239,0.14216157,211.03,210.93,6.86008263]
[1756864563428,0.66,211.02,210.9,41.32008263]
[1756864563626,6.86008263,210.98,210.9,34.46]
[1756864563823,40.41888635,211.04,210.97,6.86008263]
[1756864563824,11.59852084,211.04,210.97,6.86008263]
[1756864564042,0.66,211.03,210.96,49.28008263]
[1756864564528,7.52008263,211.03,210.96,49.28008263]
[1756864565048,6.86008263,211.0,210.95,42.64]
[1756864565255,0.28432314,211.08,210.86,31.28]
[1756864565256,12.25964374,210.99,210.93,42.62]
[1756864565460,6.86008263,210.95,210.81,0.75]
[1756864565634,6.86008263,210.89,210.81,0.1]
[1756864565945,6.86008263,210.84,210.81,0.1]
[1756864566247,7.52008263,210.83,210.81,0.1]
[1756864566544,0.28432314,210.81,210.64,0.65]
[1756864566722,6.86008263,210.76,210.68,6.86008263]
[1756864566922,20.0,210.94,210.72,6.86008263]
[1756864567142,11.60414069,210.79,210.72,6.86008263]
[1756864567318,0.66,210.8,210.73,6.86008263]
[1756864567521,6.86008263,210.76,210.69,6.86008263]
[1756864567840,6.86008263,210.81,210.74,6.86008263]
[1756864568012,6.86008263,210.81,210.7,43.57]
[1756864568013,7.52008263,210.83,210.77,6.86008263]
[1756864568219,0.66,210.83,210.78,0.03]
[1756864568520,6.86008263,210.79,210.68,6.86008263]
[1756864568718,6.86008263,210.73,210.66,6.86008263]
[1756864568940,6.86008263,210.73,210.59,2.48062745]
[1756864568941,6.86008263,210.72,210.65,6.86008263]
[1756864569238,4.74513233,210.75,210.66,26.44]
[1756864569437,0.66,210.77,210.71,6.86008263]
[1756864569641,0.66,210.77,210.67,13.59559401]
[1756864569829,0.66,210.77,210.66,26.65]
[1756864570027,4.7437884,210.81,210.74,6.86008263]
[1756864570226,11.60387103,210.81,210.74,6.86008263]
[1756864570428,7.52008263,210.8,210.73,6.86008263]
[1756864570629,7.52008263,210.8,210.74,6.86008263]
[1756864571239,4.74405806,210.79,210.74,6.86008263]
[1756864571744,0.68,210.79,210.74,6.86008263]
[1756864572125,0.68,210.79,210.74,49.80008263]
[1756864572324,0.68,210.83,210.77,6.86008263]
[1756864572534,0.68,210.83,210.76,49.78008263]
[1756864572535,7.54008263,210.83,210.76,49.78008263]
[1756864572820,7.54008263,210.83,210.77,6.86008263]
[1756864573040,7.54008263,210.83,210.76,6.86008263]
[1756864573225,4.74383301,210.8,210.74,6.86008263]
[1756864573434,7.54008263,210.79,210.72,49.74008263]
[1756864573753,5.42294958,210.84,210.73,68.86]
[1756864574244,11.85309693,210.92,210.81,6.86008263]
[1756864574548,0.68,210.88,210.83,6.86008263]
[1756864574720,6.86008263,210.9,210.78,0.71]
[1756864574921,0.68,210.87,210.77,26.0]
[1756864575121,7.54008263,210.87,210.8,6.86008263]
[1756864575426,4.74248316,210.86,210.81,6.86008263]
[1756864575627,0.68,210.91,210.83,6.86008263]
[1756864575825,6.86008263,210.89,210.83,6.86008263]
[1756864576731,6.86008263,210.88,210.79,0.71]
[1756864576934,6.86008263,210.86,210.8,6.86008263]
[1756864577161,6.86008263,210.85,210.79,49.66008263]
[1756864577353,6.86008263,210.87,210.81,6.86008263]
[1756864577557,0.68,210.93,210.86,6.86008263]
[1756864577847,6.86008263,210.91,210.85,6.86008263]
[1756864578450,0.68,210.92,210.86,6.86008263]
[1756864578663,6.86008263,210.94,210.87,6.86008263]
[1756864578872,0.68,210.95,210.88,6.86008263]
[1756864579059,7.54008263,210.95,210.83,26.0]
[1756864579255,7.54008263,210.95,210.88,6.86008263]
[1756864579455,7.54008263,210.95,210.89,6.86008263]
[1756864579669,5.42057266,210.95,210.89,6.86008263]
[1756864580071,12.28065529,210.95,210.89,6.86008263]
[1756864580258,12.28065529,210.95,210.87,6.86008263]
[1756864580259,6.86008263,210.93,210.87,6.86008263]
[1756864580572,0.68,210.94,210.84,6.86008263]
[1756864580787,0.68,210.94,210.84,49.54008263]
[1756864580978,0.68,210.94,210.84,6.86008263]
[1756864581679,4.7409093,210.93,210.84,49.50008263]
[1756864581876,4.7409093,210.93,210.85,6.86008263]
[1756864582048,0.68,210.92,210.82,0.71]
[1756864582250,6.86008263,210.91,210.83,42.6]
[1756864582469,4.7409093,210.93,210.84,6.86008263]
[1756864582470,6.86008263,210.9,210.84,6.86008263]
[1756864582668,6.86008263,210.87,210.79,0.71]
[1756864582992,6.86008263,210.81,210.73,0.71]
[1756864583191,6.86008263,210.82,210.75,49.44008263]
[1756864583359,6.86008263,210.83,210.76,6.86008263]
[1756864583555,6.86008263,210.82,210.73,26.0]
[1756864583766,4.74315799,210.83,210.66,11.86722021]
[1756864583767,6.86008263,210.81,210.74,42.58]
[1756864583973,6.86008263,210.81,210.75,6.86008263]
[1756864584873,6.86008263,210.81,210.72,0.71]
[1756864585079,0.68,210.81,210.73,6.86008263]
[1756864585268,6.86008263,210.8,210.74,6.86008263]
[1756864585887,6.86008263,210.8,210.7,0.71]
[1756864585888,4.74405806,210.79,210.7,0.71]
[1756864586071,4.74405806,210.79,210.74,6.86008263]
[1756864586267,0.68,210.88,210.78,6.86008263]
[1756864586472,0.68,210.92,210.87,6.86008263]
[1756864586666,4.74068455,210.94,210.88,6.86008263]
[1756864586864,4.74068455,210.94,210.89,6.86008263]
[1756864587064,0.68,210.93,210.88,6.86008263]
[1756864587265,7.54008263,210.92,210.85,6.86008263]
[1756864587467,6.86008263,210.91,210.85,6.86008263]
[1756864587855,4.74158368,210.9,210.85,6.86008263]
[1756864588059,5.42133872,210.92,210.86,6.86008263]
[1756864588866,12.28142135,210.92,210.85,6.86008263]
[1756864589186,6.86008263,210.86,210.8,6.86008263]
[1756864589480,7.54008263,210.87,210.81,6.86008263]
[1756864589659,0.68,210.91,210.86,6.86008263]
[1756864589859,0.68,210.91,210.85,6.86008263]
[1756864590167,6.86008263,210.9,210.84,6.86008263]
[1756864590482,4.74156217,210.91,210.86,6.86008263]
[1756864590874,6.86008263,210.9,210.83,49.32008263]
[1756864591081,6.86008263,210.89,210.83,6.86008263]
[1756864591591,0.68,210.9,210.84,10.03945938]
[1756864591783,10.71945938,210.9,210.8,43.15]
[1756864592087,26.0,210.98,210.8,43.15]
[1756864592088,0.14216157,210.97,210.85,10.03945938]
[1756864592293,0.68,210.94,210.88,10.03945938]
[1756864592676,0.68,210.94,210.89,10.03945938]
[1756864592981,10.03945938,210.96,210.89,10.03945938]
[1756864593178,20.0,211.07,210.87,42.4]
[1756864593179,0.68,211.06,210.95,10.03945938]
[1756864593379,3.90124267,211.11,210.96,0.71]
[1756864593575,4.58124267,211.11,211.03,10.03945938]
[1756864593767,14.62070205,211.11,211.04,10.03945938]
[1756864593971,14.62070205,211.11,211.0,0.71]
[1756864593972,10.03945938,211.09,211.0,0.71]
[1756864594164,10.03945938,211.09,211.03,10.03945938]
[1756864594378,10.03945938,211.09,211.02,10.03945938]
[1756864594577,5.41709142,211.1,211.03,10.03945938]
[1756864594578,15.4565508,211.1,211.03,10.03945938]
[1756864594972,5.41709142,211.1,211.03,10.03945938]
[1756864595169,5.41709142,211.1,211.05,10.03945938]
[1756864595491,4.73674823,211.12,210.97,26.0]
[1756864595672,10.03945938,211.03,210.96,10.03945938]
[1756864595882,10.03945938,211.0,210.93,10.03945938]
[1756864596071,10.03945938,211.02,210.95,10.03945938]
[1756864596275,10.03945938,211.03,210.96,10.03945938]
[1756864596678,0.68,211.05,210.93,0.71]
[1756864596879,10.03945938,211.03,210.96,10.03945938]
[1756864597186,4.73978576,210.98,210.92,10.03945938]
[1756864597493,10.03945938,211.01,210.95,10.03945938]
[1756864597697,10.03945938,211.0,210.93,10.03945938]
[1756864598577,17.26628169,211.02,210.92,10.03945938]
[1756864598578,10.03945938,210.99,210.92,10.03945938]
[1756864598786,17.26628169,211.02,210.91,10.03945938]
[1756864598787,10.03945938,210.98,210.91,10.03945938]
[1756864598973,10.71945938,210.98,210.91,10.03945938]
[1756864599176,10.03945938,210.97,210.9,10.03945938]
[1756864599376,14.77856986,211.02,210.96,10.03945938]
[1756864599673,10.03945938,210.99,210.93,10.03945938]
[1756864599881,10.03945938,210.99,210.91,26.71]
[1756864599882,10.03945938,210.96,210.89,10.03945938]
[1756864600073,10.03945938,210.95,210.87,0.71]
[1756864600301,10.03945938,210.95,210.89,10.03945938]
[1756864600474,0.68,211.0,210.9,10.03945938]
[1756864600673,10.03945938,210.96,210.89,10.03945938]
[1756864601586,14.7799192,210.95,210.89,10.03945938]
[1756864601790,10.03945938,210.94,210.88,10.03945938]
[1756864601988,10.03945938,210.93,210.86,10.03945938]
[1756864602187,4.74045982,210.95,210.82,31.34]
[1756864602188,10.03945938,210.89,210.82,31.34]
[1756864602384,10.03945938,210.88,210.82,10.03945938]
[1756864602583,10.03945938,210.89,210.82,10.03945938]
[1756864602783,10.70945938,210.9,210.83,10.03945938]
[1756864602979,10.03945938,210.89,210.82,10.03945938]
[1756864603186,10.03945938,210.88,210.82,10.03945938]
[1756864603487,10.03945938,210.91,210.85,10.03945938]
[1756864603680,10.03945938,210.88,210.77,26.72]
[1756864603903,10.03945938,210.87,210.78,42.22]
[1756864604086,10.03945938,210.86,210.77,42.94]
[1756864604286,10.03945938,210.86,210.79,10.03945938]
[1756864604587,10.03945938,210.84,210.77,0.72]
[1756864604787,0.67,210.86,210.78,10.03945938]
[1756864604788,10.03945938,210.85,210.78,10.03945938]
[1756864604987,10.70945938,210.86,210.79,10.03945938]
[1756864605182,10.03945938,210.87,210.8,10.03945938]
[1756864605383,0.67,210.9,210.83,10.03945938]
[1756864605583,10.03945938,210.92,210.85,10.03945938]
[1756864605795,0.14216157,210.95,210.88,10.03945938]
[1756864605796,0.67,210.94,210.88,10.03945938]
[1756864605992,4.74045966,210.96,210.91,10.03945938]
[1756864606304,5.41045966,210.96,210.91,10.03945938]
[1756864606895,0.06,210.94,210.93,10.03945938]
[1756864607705,0.06,210.94,210.93,10.75945938]
[1756864607893,0.06,210.94,210.93,15.50036868]
[1756864608584,0.06,210.94,210.93,10.75945938]
[1756864608781,0.06,210.94,210.93,10.03945938]
[1756864608978,0.06,210.94,210.9,47.50150053]
[1756864609186,0.06,210.94,210.93,10.03945938]
[1756864609414,0.06,210.94,210.88,0.72]
[1756864609415,0.06,210.94,210.92,10.03945938]
[1756864609590,10.03945938,210.93,210.86,10.03945938]
[1756864609909,10.03945938,210.92,210.85,10.03945938]
[1756864610087,10.03945938,210.91,210.82,42.76]
[1756864610287,10.03945938,210.91,210.84,10.03945938]
[1756864610491,0.67,210.93,210.84,10.03945938]
[1756864610690,10.03945938,210.91,210.84,10.03945938]
[1756864610984,10.03945938,210.91,210.85,10.03945938]
[1756864611300,10.03945938,210.89,210.82,36.03945938]
[1756864611496,10.03945938,210.89,210.82,10.03945938]
[1756864611683,4.74203338,210.88,210.82,10.03945938]
[1756864611887,10.03945938,210.89,210.8,47.52380595]
[1756864612088,10.03945938,210.87,210.78,0.03]
[1756864612305,5.02545721,210.92,210.83,10.03945938]
[1756864612488,10.03945938,210.9,210.83,10.03945938]
[1756864612804,0.06,210.94,210.88,10.03945938]
[1756864613009,0.06,210.94,210.89,10.03945938]
[1756864613611,0.73,210.94,210.89,10.03945938]
[1756864613910,10.03945938,210.91,210.78,11.89070784]
[1756864614215,10.03945938,210.89,210.82,10.03945938]
[1756864614389,0.67,210.9,210.84,10.03945938]
[1756864614591,10.03945938,210.91,210.85,10.03945938]
[1756864614913,10.70945938,210.93,210.87,10.03945938]
[1756864615295,10.03945938,210.92,210.86,10.03945938]
[1756864615816,5.41102751,210.93,210.86,10.03945938]
[1756864615997,15.45048689,210.93,210.86,10.03945938]
[1756864616198,15.45048689,210.93,210.83,42.68]
[1756864616400,10.03945938,210.92,210.83,0.72]
[1756864616707,10.03945938,210.92,210.83,42.68]
[1756864616897,15.45048689,210.93,210.87,10.03945938]
[1756864617098,10.03945938,210.92,210.86,10.03945938]
[1756864617701,14.78064211,210.92,210.84,4.74282752]
[1756864618013,14.78064211,210.92,210.83,5.46312455]
[1756864618219,14.78064211,210.92,210.86,10.03945938]
[1756864618828,0.06,210.94,210.91,10.03945938]
[1756864619117,0.06,210.94,210.93,10.03945938]
[1756864619704,0.73,210.94,210.87,41.92]
[1756864619910,0.06,210.94,210.88,10.03945938]
[1756864620098,0.06,210.94,210.9,10.03945938]
[1756864620401,10.03945938,210.92,210.85,51.95945938]
[1756864620591,0.06,210.94,210.88,10.03945938]
[1756864620792,10.70945938,210.93,210.82,26.72]
[1756864620997,10.70945938,210.93,210.86,10.03945938]
[1756864621508,10.70945938,210.93,210.85,41.92]
[1756864621509,10.09945938,210.94,210.87,10.03945938]
[1756864621714,10.03945938,210.93,210.86,10.03945938]
[1756864621919,10.03945938,210.93,210.84,5.46271072]
[1756864622126,10.03945938,210.93,210.86,10.03945938]
[1756864622330,14.84014393,210.94,210.84,0.72]
[1756864622531,14.84014393,210.94,210.87,10.03945938]
[1756864623544,10.03945938,210.91,210.84,10.03945938]
[1756864623728,10.03945938,210.92,210.85,10.03945938]
[1756864624109,15.45038836,210.93,210.83,0.72]
[1756864624313,10.70945938,210.93,210.86,10.03945938]
[1756864624510,15.45043223,210.93,210.86,10.03945938]
[1756864625315,15.45043223,210.93,210.83,5.46312351]
[1756864625522,15.45043223,210.93,210.85,10.03945938]
[1756864625880,10.70945938,210.93,210.86,10.03945938]
[1756864626032,0.06,210.94,210.92,10.03945938]
[1756864626338,0.06,210.94,210.93,10.03945938]
[1756864626519,0.06,210.94,210.93,10.75945938]
[1756864627008,0.06,210.94,210.93,10.03945938]
[1756864627405,0.06,210.94,210.93,51.85945938]
[1756864627720,0.06,210.94,210.93,14.78036868]
[1756864627923,0.06,210.94,210.93,56.60036868]
[1756864629026,0.06,210.94,210.93,14.78036868]
[1756864629230,0.06,210.94,210.93,57.26036868]
[1756864629735,0.06,210.97,210.93,69.11264194]
[1756864629952,0.06,210.97,210.96,10.03945938]
[1756864630447,0.06,210.97,210.96,10.75945938]
[1756864630622,0.06,210.97,210.93,16.59318256]
[1756864630825,0.06,210.97,210.96,10.03945938]
[1756864631922,0.06,210.97,210.96,15.44969449]
[1756864633218,0.06,210.99,210.98,39.59559401]
[1756864633219,1e-08,210.99,210.98,39.59559401]
[1756864633520,10.03945938,211.14,210.98,10.51343795]
[1756864633717,0.66,211.11,211.06,10.03945938]
[1756864633918,0.66,211.1,211.07,41.68]
[1756864634144,4.93668806,211.12,211.07,42.35]
[1756864634145,0.2,211.12,211.07,42.35]
[1756864634518,0.2,211.12,211.07,41.68]
[1756864634720,0.2,211.12,211.1,10.03945938]
[1756864634933,0.2,211.12,211.09,10.03945938]
[1756864635129,0.86,211.12,211.07,41.68]
[1756864635337,0.86,211.12,211.09,10.03945938]
[1756864635554,0.86,211.12,211.1,41.68]
[1756864636422,0.2,211.12,211.1,41.68]
[1756864637638,0.2,211.12,211.11,10.03945938]
[1756864638029,0.2,211.12,211.11,15.44632641]
[1756864639044,0.2,211.12,211.08,26.0]
[1756864639354,0.2,211.12,211.11,51.53945938]
[1756864639738,0.2,211.12,211.11,52.20945938]
[1756864640755,0.2,211.12,211.11,52.16945938]
[1756864641556,0.2,211.12,211.11,56.90632641]
[1756864641754,0.2,211.12,211.11,10.70945938]
[1756864641950,0.2,211.12,211.11,51.45945938]
[1756864643460,0.2,211.12,211.03,0.67]
[1756864643461,0.86,211.12,211.03,0.67]
[1756864643658,0.2,211.12,211.09,10.03945938]
[1756864643843,0.2,211.12,211.1,41.4]
[1756864644035,0.2,211.12,211.1,51.43945938]
[1756864644238,0.2,211.12,211.11,10.03945938]
[1756864644761,0.2,211.12,211.04,26.67]
[1756864644942,0.2,211.12,211.11,10.03945938]
[1756864645149,0.2,211.12,211.11,51.39945938]
[1756864645366,0.2,211.12,211.11,52.06945938]
[1756864645543,0.2,211.12,211.11,56.80632641]
[1756864646151,0.2,211.12,211.11,46.76686703]
[1756864646347,0.2,211.12,211.11,15.44632641]
[1756864646657,0.2,211.12,211.11,70.38192042]
[1756864646866,0.2,211.12,211.11,60.81614774]
[1756864647073,0.2,211.12,211.11,70.38192042]
[1756864647365,1e-08,211.12,211.11,70.38192042]
[1756864648757,1e-08,211.12,211.11,70.85560712]
[1756864649957,1e-08,211.12,211.11,70.24192042]
[1756864650571,1e-08,211.12,211.11,70.28192042]
[1756864651344,1e-08,211.12,211.11,70.75560712]
[1756864651655,1e-08,211.12,211.11,74.42906118]
[1756864651865,1e-08,211.12,211.11,33.18906118]
[1756864652267,1e-08,211.12,211.11,14.73928071]
[1756864652464,1e-08,211.12,211.11,61.61205073]
[1756864652651,1e-08,211.12,211.11,52.75332375]
[1756864653683,1e-08,211.12,211.09,4.73716591]
[1756864653978,0.66000001,211.12,211.1,41.14]
[1756864654180,0.66000001,211.12,211.11,6.85645672]
[1756864655250,0.66000001,211.12,211.11,11.59332375]
[1756864655455,7.51645673,211.12,211.0,43.56177025]
[1756864655770,0.66,211.11,211.09,6.85645672]
[1756864655961,1e-08,211.12,211.1,41.24]
[1756864656456,1e-08,211.12,211.11,21.59573743]
[1756864656662,0.06,211.15,211.14,39.59559401]
[1756864656959,0.06,211.15,211.14,51.18824472]
[1756864657169,0.06,211.15,211.14,92.54824472]
[1756864657476,0.06,211.15,211.14,51.18824472]
[1756864657661,0.06,211.15,211.14,93.19824472]
[1756864657865,0.06,211.15,211.14,86.341788]
[1756864658077,0.06,211.15,211.14,93.19824472]
[1756864658249,0.06,211.15,211.14,47.12205073]
[1756864658454,0.06,211.15,211.14,88.44205073]
[1756864658654,0.06,211.15,211.14,93.17824472]
[1756864658953,0.06,211.15,211.14,51.85824472]
[1756864659260,5.66,211.35,211.19,14.31]
[1756864659578,11.83037414,211.4,211.39,13.59559401]
[1756864659780,0.99578112,211.54,211.46,26.0]
[1756864659781,0.66,211.53,211.46,26.0]